{"text_format":"1","workbook":"xlsx","n_sheets":8,"sheets":["Instrukcija","Suvestine","1","2","3","4","5","6"],"not_rendered":{"charts":0,"images":1,"macros":1,"external_links":0,"defined_names":6,"comments":0,"pivot_tables":0},"unopened":[],"bounds":{"document_bytes":16777216,"sheet_cells":100000,"rows_first":2000,"rows_last":500,"rows_between":2000,"halvings":0,"cell_chars":16384,"cell_head_chars":4096},"cells_cut":0,"cells_raw":0,"read":"whole","date_system":"1900"}

{"sheet":"Instrukcija","index":0,"n_rows":11,"n_cols":4,"rows_kept":11,"cut":false,"hidden":false,"merged":[[0,3,0,5],[5,1,5,5],[8,1,8,5],[10,1,10,5],[2,0,2,5],[4,1,4,5],[6,1,6,5],[7,1,7,5],[9,1,9,5]]}
[null,null,null,"Verslo plano priedas „Reikalingi ištekliai“\nNr. 1C"]
[]
["Pildymo instrukcija"]
[]
[1,"Šis verslo plano priedas Nr. 1C pildomas tik projekto veikloms, nurodytoms 2014–2020 metų Europos Sąjungos fondų investicijų veiksmų programos 1 prioriteto „Mokslinių tyrimų, eksperimentinės plėtros ir inovacijų skatinimas“ priemonės Nr. J05-LVPA-K „Intelektas. Bendri mokslo–verslo projektai“ projektų finansavimo sąlygų aprašo Nr. 1 (toliau – Aprašas) 10.3 punkte."]
[2,"Pildykite tik žalia spalva pažymėtus laukus."]
[3,"Nereikalingų eilučių, stulpelių netrinkite, esant poreikiui eilutes, stulpelius galite tik paslėpti (hide)."]
[4,"Kiekvienam pirmo lygio (kurio paraiškoje nurodytas numeris susideda iš trijų skaitmenų) fiziniam rodikliui, nurodytam paraiškos 6 dalyje „Projekto loginis pagrindimas“, pildykite atskirą lapą. Fizinio rodiklio pavadinimas ir numeris turi sutapti su paraiškoje nurodytais fizinių rodiklių pavadinimais ir numeriais. Jei projektas vykdomas kartu su partneriu(-iais), veikloms, kurios vykdomos kartu su partneriu(-iais) rekomenduojama atskirai numatyti pareiškėjui ir partneriui(-iams) tenkančius fizinius rodiklius.\nAtkreipiame dėmesį, kad vienam fiziniam rodikliui gali būti priskirta tik viena biudžeto išlaidų kategorija."]
[5,"Jei projektas vykdomas kartu su partneriu(-iais), rekomenduojama pareiškėjui ir partneriui(-iams) numatyti atskirus  pirmo lygio fizinius rodiklius."]
[6,"Kai užpildysite visas fizinių rodiklių išlaidas, kortelėje „Suvestinė“ paspauskite viršuje kairėje pusėje esantį mygtuką „Tvarkyti lentelę“, kad užsipildytų suminė informacija šioje kortelėje."]
[7,"Antrajame konkurso etape kartu su verslo planu turi būti pateiktas ir šis verslo plano priedas (popierinė ir elektroninė versijos). LVPA teikiamoje elektroninėje versijoje turi likti visos skaičiavimams naudotos formulės."]

{"sheet":"Suvestine","index":1,"n_rows":66,"n_cols":6,"rows_kept":66,"cut":false,"hidden":false,"merged":[[0,0,0,5],[55,0,55,1],[57,0,57,5],[65,0,65,1]]}
["Veiklų, vykdomų pagal Aprašo 10.3 punktą, išlaidų suvestinė lentelė pagal fizinius rodiklius (lentelė užsipildo automatiškai)"]
[]
["Fizinio rodiklio Nr.","Fizinio rodiklio pavadinimas","Fizinio rodiklio matavimo vnt.","Fizinio rodiklio vnt. skaičius","Tinkamų finansuoti išlaidų suma, Eur","Finansavimo suma, Eur"]
["4","Įranga, įrenginiai ir kt. turtas",null,null,{"$f":"SUM(E5:E29)","v":{"$error":"#REF!"}},{"$f":"SUM(F5:F29)","v":{"$error":"#REF!"}}]
[{"$f":"'1'!$D$2","v":0},{"$f":"'1'!$D$3","v":0},{"$f":"'1'!$D$4","v":0},{"$f":"'1'!$H$4","v":0},{"$f":"'1'!#REF!","v":{"$error":"#REF!"}},{"$f":"'1'!#REF!","v":{"$error":"#REF!"}}]
[{"$f":"'2'!$D$2","v":0},{"$f":"'2'!$D$3","v":0},{"$f":"'2'!$D$4","v":0},{"$f":"'2'!$H$4","v":0},{"$f":"'2'!#REF!","v":{"$error":"#REF!"}},{"$f":"'2'!#REF!","v":{"$error":"#REF!"}}]
[{"$f":"'3'!$D$2","v":0},{"$f":"'3'!$D$3","v":0},{"$f":"'3'!$D$4","v":0},{"$f":"'3'!$H$4","v":0},{"$f":"'3'!#REF!","v":{"$error":"#REF!"}},{"$f":"'3'!#REF!","v":{"$error":"#REF!"}}]
[{"$f":"'4'!$D$2","v":0},{"$f":"'4'!$D$3","v":0},{"$f":"'4'!$D$4","v":0},{"$f":"'4'!$H$4","v":0},{"$f":"'4'!#REF!","v":{"$error":"#REF!"}},{"$f":"'4'!#REF!","v":{"$error":"#REF!"}}]
[{"$f":"'5'!$D$2","v":0},{"$f":"'5'!$D$3","v":0},{"$f":"'5'!$D$4","v":0},{"$f":"'5'!$H$4","v":0},{"$f":"'5'!#REF!","v":{"$error":"#REF!"}},{"$f":"'5'!#REF!","v":{"$error":"#REF!"}}]
[{"$f":"'6'!$D$2","v":0},{"$f":"'6'!$D$3","v":0},{"$f":"'6'!$D$4","v":0},{"$f":"'6'!$H$4","v":0},{"$f":"'6'!#REF!","v":{"$error":"#REF!"}},{"$f":"'6'!#REF!","v":{"$error":"#REF!"}}]
[{"$f":"#REF!","v":{"$error":"#REF!"}},{"$f":"#REF!","v":{"$error":"#REF!"}},{"$f":"#REF!","v":{"$error":"#REF!"}},{"$f":"#REF!","v":{"$error":"#REF!"}},{"$f":"#REF!","v":{"$error":"#REF!"}},{"$f":"#REF!","v":{"$error":"#REF!"}}]
[{"$f":"#REF!","v":{"$error":"#REF!"}},{"$f":"#REF!","v":{"$error":"#REF!"}},{"$f":"#REF!","v":{"$error":"#REF!"}},{"$f":"#REF!","v":{"$error":"#REF!"}},{"$f":"#REF!","v":{"$error":"#REF!"}},{"$f":"#REF!","v":{"$error":"#REF!"}}]
[{"$f":"#REF!","v":{"$error":"#REF!"}},{"$f":"#REF!","v":{"$error":"#REF!"}},{"$f":"#REF!","v":{"$error":"#REF!"}},{"$f":"#REF!","v":{"$error":"#REF!"}},{"$f":"#REF!","v":{"$error":"#REF!"}},{"$f":"#REF!","v":{"$error":"#REF!"}}]
[{"$f":"#REF!","v":{"$error":"#REF!"}},{"$f":"#REF!","v":{"$error":"#REF!"}},{"$f":"#REF!","v":{"$error":"#REF!"}},{"$f":"#REF!","v":{"$error":"#REF!"}},{"$f":"#REF!","v":{"$error":"#REF!"}},{"$f":"#REF!","v":{"$error":"#REF!"}}]
[{"$f":"#REF!","v":{"$error":"#REF!"}},{"$f":"#REF!","v":{"$error":"#REF!"}},{"$f":"#REF!","v":{"$error":"#REF!"}},{"$f":"#REF!","v":{"$error":"#REF!"}},{"$f":"#REF!","v":{"$error":"#REF!"}},{"$f":"#REF!","v":{"$error":"#REF!"}}]
[{"$f":"#REF!","v":{"$error":"#REF!"}},{"$f":"#REF!","v":{"$error":"#REF!"}},{"$f":"#REF!","v":{"$error":"#REF!"}},{"$f":"#REF!","v":{"$error":"#REF!"}},{"$f":"#REF!","v":{"$error":"#REF!"}},{"$f":"#REF!","v":{"$error":"#REF!"}}]
[{"$f":"#REF!","v":{"$error":"#REF!"}},{"$f":"#REF!","v":{"$error":"#REF!"}},{"$f":"#REF!","v":{"$error":"#REF!"}},{"$f":"#REF!","v":{"$error":"#REF!"}},{"$f":"#REF!","v":{"$error":"#REF!"}},{"$f":"#REF!","v":{"$error":"#REF!"}}]
[{"$f":"#REF!","v":{"$error":"#REF!"}},{"$f":"#REF!","v":{"$error":"#REF!"}},{"$f":"#REF!","v":{"$error":"#REF!"}},{"$f":"#REF!","v":{"$error":"#REF!"}},{"$f":"#REF!","v":{"$error":"#REF!"}},{"$f":"#REF!","v":{"$error":"#REF!"}}]
[{"$f":"#REF!","v":{"$error":"#REF!"}},{"$f":"#REF!","v":{"$error":"#REF!"}},{"$f":"#REF!","v":{"$error":"#REF!"}},{"$f":"#REF!","v":{"$error":"#REF!"}},{"$f":"#REF!","v":{"$error":"#REF!"}},{"$f":"#REF!","v":{"$error":"#REF!"}}]
[{"$f":"#REF!","v":{"$error":"#REF!"}},{"$f":"#REF!","v":{"$error":"#REF!"}},{"$f":"#REF!","v":{"$error":"#REF!"}},{"$f":"#REF!","v":{"$error":"#REF!"}},{"$f":"#REF!","v":{"$error":"#REF!"}},{"$f":"#REF!","v":{"$error":"#REF!"}}]
[{"$f":"#REF!","v":{"$error":"#REF!"}},{"$f":"#REF!","v":{"$error":"#REF!"}},{"$f":"#REF!","v":{"$error":"#REF!"}},{"$f":"#REF!","v":{"$error":"#REF!"}},{"$f":"#REF!","v":{"$error":"#REF!"}},{"$f":"#REF!","v":{"$error":"#REF!"}}]
[{"$f":"#REF!","v":{"$error":"#REF!"}},{"$f":"#REF!","v":{"$error":"#REF!"}},{"$f":"#REF!","v":{"$error":"#REF!"}},{"$f":"#REF!","v":{"$error":"#REF!"}},{"$f":"#REF!","v":{"$error":"#REF!"}},{"$f":"#REF!","v":{"$error":"#REF!"}}]
[{"$f":"#REF!","v":{"$error":"#REF!"}},{"$f":"#REF!","v":{"$error":"#REF!"}},{"$f":"#REF!","v":{"$error":"#REF!"}},{"$f":"#REF!","v":{"$error":"#REF!"}},{"$f":"#REF!","v":{"$error":"#REF!"}},{"$f":"#REF!","v":{"$error":"#REF!"}}]
[{"$f":"#REF!","v":{"$error":"#REF!"}},{"$f":"#REF!","v":{"$error":"#REF!"}},{"$f":"#REF!","v":{"$error":"#REF!"}},{"$f":"#REF!","v":{"$error":"#REF!"}},{"$f":"#REF!","v":{"$error":"#REF!"}},{"$f":"#REF!","v":{"$error":"#REF!"}}]
[{"$f":"#REF!","v":{"$error":"#REF!"}},{"$f":"#REF!","v":{"$error":"#REF!"}},{"$f":"#REF!","v":{"$error":"#REF!"}},{"$f":"#REF!","v":{"$error":"#REF!"}},{"$f":"#REF!","v":{"$error":"#REF!"}},{"$f":"#REF!","v":{"$error":"#REF!"}}]
[{"$f":"#REF!","v":{"$error":"#REF!"}},{"$f":"#REF!","v":{"$error":"#REF!"}},{"$f":"#REF!","v":{"$error":"#REF!"}},{"$f":"#REF!","v":{"$error":"#REF!"}},{"$f":"#REF!","v":{"$error":"#REF!"}},{"$f":"#REF!","v":{"$error":"#REF!"}}]
[{"$f":"#REF!","v":{"$error":"#REF!"}},{"$f":"#REF!","v":{"$error":"#REF!"}},{"$f":"#REF!","v":{"$error":"#REF!"}},{"$f":"#REF!","v":{"$error":"#REF!"}},{"$f":"#REF!","v":{"$error":"#REF!"}},{"$f":"#REF!","v":{"$error":"#REF!"}}]
[{"$f":"#REF!","v":{"$error":"#REF!"}},{"$f":"#REF!","v":{"$error":"#REF!"}},{"$f":"#REF!","v":{"$error":"#REF!"}},{"$f":"#REF!","v":{"$error":"#REF!"}},{"$f":"#REF!","v":{"$error":"#REF!"}},{"$f":"#REF!","v":{"$error":"#REF!"}}]
[{"$f":"#REF!","v":{"$error":"#REF!"}},{"$f":"#REF!","v":{"$error":"#REF!"}},{"$f":"#REF!","v":{"$error":"#REF!"}},{"$f":"#REF!","v":{"$error":"#REF!"}},{"$f":"#REF!","v":{"$error":"#REF!"}},{"$f":"#REF!","v":{"$error":"#REF!"}}]
["5","Projekto vykdymas",null,null,{"$f":"SUM(E31:E55)","v":{"$error":"#REF!"}},{"$f":"SUM(F31:F55)","v":{"$error":"#REF!"}}]
[{"$f":"'1'!$D$2","v":0},{"$f":"'1'!$D$3","v":0},{"$f":"'1'!$D$4","v":0},{"$f":"'1'!$H$4","v":0},{"$f":"'1'!$G$10","v":0},{"$f":"'1'!$H$10","v":0}]
[{"$f":"'2'!$D$2","v":0},{"$f":"'2'!$D$3","v":0},{"$f":"'2'!$D$4","v":0},{"$f":"'2'!$H$4","v":0},{"$f":"'2'!$G$10","v":0},{"$f":"'2'!$H$10","v":0}]
[{"$f":"'3'!$D$2","v":0},{"$f":"'3'!$D$3","v":0},{"$f":"'3'!$D$4","v":0},{"$f":"'3'!$H$4","v":0},{"$f":"'3'!$G$10","v":0},{"$f":"'3'!$H$10","v":0}]
[{"$f":"'4'!$D$2","v":0},{"$f":"'4'!$D$3","v":0},{"$f":"'4'!$D$4","v":0},{"$f":"'4'!$H$4","v":0},{"$f":"'4'!$G$10","v":0},{"$f":"'4'!$H$10","v":0}]
[{"$f":"'5'!$D$2","v":0},{"$f":"'5'!$D$3","v":0},{"$f":"'5'!$D$4","v":0},{"$f":"'5'!$H$4","v":0},{"$f":"'5'!$G$10","v":0},{"$f":"'5'!$H$10","v":0}]
[{"$f":"'6'!$D$2","v":0},{"$f":"'6'!$D$3","v":0},{"$f":"'6'!$D$4","v":0},{"$f":"'6'!$H$4","v":0},{"$f":"'6'!$G$10","v":0},{"$f":"'6'!$H$10","v":0}]
[{"$f":"#REF!","v":{"$error":"#REF!"}},{"$f":"#REF!","v":{"$error":"#REF!"}},{"$f":"#REF!","v":{"$error":"#REF!"}},{"$f":"#REF!","v":{"$error":"#REF!"}},{"$f":"#REF!","v":{"$error":"#REF!"}},{"$f":"#REF!","v":{"$error":"#REF!"}}]
[{"$f":"#REF!","v":{"$error":"#REF!"}},{"$f":"#REF!","v":{"$error":"#REF!"}},{"$f":"#REF!","v":{"$error":"#REF!"}},{"$f":"#REF!","v":{"$error":"#REF!"}},{"$f":"#REF!","v":{"$error":"#REF!"}},{"$f":"#REF!","v":{"$error":"#REF!"}}]
[{"$f":"#REF!","v":{"$error":"#REF!"}},{"$f":"#REF!","v":{"$error":"#REF!"}},{"$f":"#REF!","v":{"$error":"#REF!"}},{"$f":"#REF!","v":{"$error":"#REF!"}},{"$f":"#REF!","v":{"$error":"#REF!"}},{"$f":"#REF!","v":{"$error":"#REF!"}}]
[{"$f":"#REF!","v":{"$error":"#REF!"}},{"$f":"#REF!","v":{"$error":"#REF!"}},{"$f":"#REF!","v":{"$error":"#REF!"}},{"$f":"#REF!","v":{"$error":"#REF!"}},{"$f":"#REF!","v":{"$error":"#REF!"}},{"$f":"#REF!","v":{"$error":"#REF!"}}]
[{"$f":"#REF!","v":{"$error":"#REF!"}},{"$f":"#REF!","v":{"$error":"#REF!"}},{"$f":"#REF!","v":{"$error":"#REF!"}},{"$f":"#REF!","v":{"$error":"#REF!"}},{"$f":"#REF!","v":{"$error":"#REF!"}},{"$f":"#REF!","v":{"$error":"#REF!"}}]
[{"$f":"#REF!","v":{"$error":"#REF!"}},{"$f":"#REF!","v":{"$error":"#REF!"}},{"$f":"#REF!","v":{"$error":"#REF!"}},{"$f":"#REF!","v":{"$error":"#REF!"}},{"$f":"#REF!","v":{"$error":"#REF!"}},{"$f":"#REF!","v":{"$error":"#REF!"}}]
[{"$f":"#REF!","v":{"$error":"#REF!"}},{"$f":"#REF!","v":{"$error":"#REF!"}},{"$f":"#REF!","v":{"$error":"#REF!"}},{"$f":"#REF!","v":{"$error":"#REF!"}},{"$f":"#REF!","v":{"$error":"#REF!"}},{"$f":"#REF!","v":{"$error":"#REF!"}}]
[{"$f":"#REF!","v":{"$error":"#REF!"}},{"$f":"#REF!","v":{"$error":"#REF!"}},{"$f":"#REF!","v":{"$error":"#REF!"}},{"$f":"#REF!","v":{"$error":"#REF!"}},{"$f":"#REF!","v":{"$error":"#REF!"}},{"$f":"#REF!","v":{"$error":"#REF!"}}]
[{"$f":"#REF!","v":{"$error":"#REF!"}},{"$f":"#REF!","v":{"$error":"#REF!"}},{"$f":"#REF!","v":{"$error":"#REF!"}},{"$f":"#REF!","v":{"$error":"#REF!"}},{"$f":"#REF!","v":{"$error":"#REF!"}},{"$f":"#REF!","v":{"$error":"#REF!"}}]
[{"$f":"#REF!","v":{"$error":"#REF!"}},{"$f":"#REF!","v":{"$error":"#REF!"}},{"$f":"#REF!","v":{"$error":"#REF!"}},{"$f":"#REF!","v":{"$error":"#REF!"}},{"$f":"#REF!","v":{"$error":"#REF!"}},{"$f":"#REF!","v":{"$error":"#REF!"}}]
[{"$f":"#REF!","v":{"$error":"#REF!"}},{"$f":"#REF!","v":{"$error":"#REF!"}},{"$f":"#REF!","v":{"$error":"#REF!"}},{"$f":"#REF!","v":{"$error":"#REF!"}},{"$f":"#REF!","v":{"$error":"#REF!"}},{"$f":"#REF!","v":{"$error":"#REF!"}}]
[{"$f":"#REF!","v":{"$error":"#REF!"}},{"$f":"#REF!","v":{"$error":"#REF!"}},{"$f":"#REF!","v":{"$error":"#REF!"}},{"$f":"#REF!","v":{"$error":"#REF!"}},{"$f":"#REF!","v":{"$error":"#REF!"}},{"$f":"#REF!","v":{"$error":"#REF!"}}]
[{"$f":"#REF!","v":{"$error":"#REF!"}},{"$f":"#REF!","v":{"$error":"#REF!"}},{"$f":"#REF!","v":{"$error":"#REF!"}},{"$f":"#REF!","v":{"$error":"#REF!"}},{"$f":"#REF!","v":{"$error":"#REF!"}},{"$f":"#REF!","v":{"$error":"#REF!"}}]
[{"$f":"#REF!","v":{"$error":"#REF!"}},{"$f":"#REF!","v":{"$error":"#REF!"}},{"$f":"#REF!","v":{"$error":"#REF!"}},{"$f":"#REF!","v":{"$error":"#REF!"}},{"$f":"#REF!","v":{"$error":"#REF!"}},{"$f":"#REF!","v":{"$error":"#REF!"}}]
[{"$f":"#REF!","v":{"$error":"#REF!"}},{"$f":"#REF!","v":{"$error":"#REF!"}},{"$f":"#REF!","v":{"$error":"#REF!"}},{"$f":"#REF!","v":{"$error":"#REF!"}},{"$f":"#REF!","v":{"$error":"#REF!"}},{"$f":"#REF!","v":{"$error":"#REF!"}}]
[{"$f":"#REF!","v":{"$error":"#REF!"}},{"$f":"#REF!","v":{"$error":"#REF!"}},{"$f":"#REF!","v":{"$error":"#REF!"}},{"$f":"#REF!","v":{"$error":"#REF!"}},{"$f":"#REF!","v":{"$error":"#REF!"}},{"$f":"#REF!","v":{"$error":"#REF!"}}]
[{"$f":"#REF!","v":{"$error":"#REF!"}},{"$f":"#REF!","v":{"$error":"#REF!"}},{"$f":"#REF!","v":{"$error":"#REF!"}},{"$f":"#REF!","v":{"$error":"#REF!"}},{"$f":"#REF!","v":{"$error":"#REF!"}},{"$f":"#REF!","v":{"$error":"#REF!"}}]
[{"$f":"#REF!","v":{"$error":"#REF!"}},{"$f":"#REF!","v":{"$error":"#REF!"}},{"$f":"#REF!","v":{"$error":"#REF!"}},{"$f":"#REF!","v":{"$error":"#REF!"}},{"$f":"#REF!","v":{"$error":"#REF!"}},{"$f":"#REF!","v":{"$error":"#REF!"}}]
[{"$f":"#REF!","v":{"$error":"#REF!"}},{"$f":"#REF!","v":{"$error":"#REF!"}},{"$f":"#REF!","v":{"$error":"#REF!"}},{"$f":"#REF!","v":{"$error":"#REF!"}},{"$f":"#REF!","v":{"$error":"#REF!"}},{"$f":"#REF!","v":{"$error":"#REF!"}}]
["Iš viso:",null,null,null,{"$f":"E4+E30","v":{"$error":"#REF!"}},{"$f":"F4+F30","v":{"$error":"#REF!"}}]
[]
["Veiklų, vykdomų pagal Aprašo 10.3 punktą, išlaidų suvestinė lentelė pagal išlaidų kategorijas (lentelė užsipildo automatiškai)"]
[]
["Fizinio rodiklio Nr.","Fizinio rodiklio pavadinimas","Tinkamų finansuoti išlaidų suma, Eur","Finansavimo suma, Eur"]
["5","Projekto vykdymas",{"$f":"'1'!G10+'2'!G10+'3'!G10+'4'!G10+'5'!G10+'6'!G10","v":0},{"$f":"'1'!H10+'2'!H10+'3'!H10+'4'!H10+'5'!H10+'6'!H10","v":0}]
["5.1","Produkto sertifikavimas",{"$f":"'1'!G11+'2'!G11+'3'!G11+'4'!G11+'5'!G11+'6'!G11","v":0},{"$f":"'1'!H11+'2'!H11+'3'!H11+'4'!H11+'5'!H11+'6'!H11","v":0}]
["5.2","Sertifikavimo paslaugos",{"$f":"'1'!G17+'2'!G17+'3'!G17+'4'!G17+'5'!G17+'6'!G17","v":0},{"$f":"'1'!H17+'2'!H17+'3'!H17+'4'!H17+'5'!H17+'6'!H17","v":0}]
["5.3","Projektą vykdančio personalo darbo užmokestis ir išlaidos su darbo santykiais susijusiems darbdavio įsipareigojimams",{"$f":"'1'!G23+'2'!G23+'3'!G23+'4'!G23+'5'!G23+'6'!G23","v":0},{"$f":"'1'!H23+'2'!H23+'3'!H23+'4'!H23+'5'!H23+'6'!H23","v":0}]
["5.4","Projektą vykdančio personalo komandiruočių išlaidos",{"$f":"'1'!G49+'2'!G49+'3'!G49+'4'!G49+'5'!G49+'6'!G49","v":0},{"$f":"'1'!H49+'2'!H49+'3'!H49+'4'!H49+'5'!H49+'6'!H49","v":0}]
["Iš viso:",null,{"$f":"C61","v":0},{"$f":"D61","v":0}]

{"sheet":"1","index":2,"n_rows":85,"n_cols":11,"rows_kept":85,"cut":false,"hidden":false,"merged":[[49,1,55,1],[56,0,62,0],[56,1,62,1],[63,0,69,0],[63,1,69,1],[49,8,55,8],[56,8,62,8],[63,8,69,8],[70,8,76,8],[77,8,83,8],[43,6,47,6],[43,7,47,7],[43,8,47,8],[43,0,47,0],[43,1,47,1],[43,3,47,3],[43,4,47,4],[43,5,47,5],[38,6,42,6],[38,7,42,7],[38,8,42,8],[33,0,37,0],[33,1,37,1],[33,3,37,3],[33,4,37,4],[33,5,37,5],[33,6,37,6],[33,7,37,7],[33,8,37,8],[38,0,42,0],[38,1,42,1],[38,3,42,3],[38,4,42,4],[28,6,32,6],[28,7,32,7],[28,8,32,8],[23,1,27,1],[23,3,27,3],[23,4,27,4],[23,6,27,6],[23,7,27,7],[23,8,27,8],[9,1,9,5],[28,1,32,1],[28,3,32,3],[28,4,32,4],[28,5,32,5],[22,1,22,5],[16,1,16,5],[10,1,10,5],[13,1,13,2],[14,1,14,2],[15,1,15,2],[11,1,11,2],[12,1,12,2],[2,0,2,2],[2,3,2,8],[8,1,8,2],[0,3,0,8],[4,0,4,2],[4,3,4,8],[3,3,3,4],[3,5,3,6],[84,0,84,5],[48,1,48,5],[17,1,17,2],[18,1,18,2],[19,1,19,2],[20,1,20,2],[21,1,21,2],[23,5,27,5],[23,0,27,0],[38,5,42,5],[28,0,32,0],[70,0,76,0],[70,1,76,1],[77,0,83,0],[77,1,83,1],[49,0,55,0]]}
[null,null,"Pasirinkite veiklos tipą:"]
[null,null,"Fizinio rodiklio Nr.:"]
["Fizinio rodiklio pavadinimas:"]
[null,null,"Fizinio rodiklio matavimo vnt.:",null,null,"Fizinio rodiklio vnt. skaičius:"]
["Juridinis asmuo (pareiškėjas, partneris), atsakingas už fizinį rodiklį:"]
[]
[null,null,"Finansavimo intensyvumas:",null,null,null,"Pasirinkite biudžeto išlaidų kategoriją:"]
[]
["Eil. Nr.","Išlaidų kategorijos pavadinimas",null,"Matavimo vnt.","Kiekis","Vieneto kaina be PVM, Eur","Tinkamų finansuoti išlaidų suma be PVM, Eur","Finansavimo suma, Eur","Išlaidų pagrindimo dokumentų pavadinimas, data ir Nr."]
[5,"PROJEKTO VYKDYMAS",null,null,null,null,{"$f":"G11+G17+G23+G49","v":0},{"$f":"H11+H17+H23+H49","v":0}]
["5.1","Produkto sertifikavimas",null,null,null,null,{"$f":"SUM(G12:G16)","v":0},{"$f":"SUM(H12:H16)","v":0}]
["5.1.1","Išlaidų pavadinimas",null,null,null,null,{"$f":"ROUND(E12*F12,2)","v":0},{"$f":"ROUND(G12*$D$7,2)","v":0}]
["5.1.2","Išlaidų pavadinimas",null,null,null,null,0,0]
["5.1.3","Išlaidų pavadinimas",null,null,null,null,0,0]
["5.1.4","Išlaidų pavadinimas",null,null,null,null,0,0]
["5.1.5","Išlaidų pavadinimas",null,null,null,null,0,0]
["5.2","Sertifikavimo paslaugos",null,null,null,null,{"$f":"SUM(G18:G22)","v":0},{"$f":"SUM(H18:H22)","v":0}]
["5.2.1","Paslaugos pavadinimas",null,null,null,null,{"$f":"ROUND(E18*F18,2)","v":0},0]
["5.2.2","Paslaugos pavadinimas",null,null,null,null,0,0]
["5.2.3","Paslaugos pavadinimas",null,null,null,null,0,0]
["5.2.4","Paslaugos pavadinimas",null,null,null,null,0,0]
["5.2.5","Paslaugos pavadinimas",null,null,null,null,0,0]
["5.3","Projektą vykdančio personalo darbo užmokestis ir išlaidos su darbo santykiais susijusiems darbdavio įsipareigojimams",null,null,null,null,{"$f":"SUM(G24:G48)","v":0},{"$f":"SUM(H24:H48)","v":0},null,null,"Faktiškai gaunamas darbo užmokesti už 1 valandą pagal  pastarųjų 6 mėn. vidurkį, Eur"]
["5.3.1","Pareigybės pavadinimas","Darbuotojo vardas pavardė","val.",null,{"$f":"IFERROR(ROUND(AVERAGE(K24:K28),2),\"0\")","v":"0"},{"$f":"ROUND(E24*F24,2)","v":0},{"$f":"ROUND(G24*$D$7,2)","v":0}]
[null,null,"Darbuotojo vardas pavardė"]
[null,null,"Darbuotojo vardas pavardė"]
[null,null,"Darbuotojo vardas pavardė"]
[null,null,"Darbuotojo vardas pavardė"]
["5.3.2","Pareigybės pavadinimas","Darbuotojo vardas pavardė","val.",null,{"$f":"IFERROR(ROUND(AVERAGE(K29:K33),2),\"0\")","v":"0"},{"$f":"ROUND(E29*F29,2)","v":0},{"$f":"ROUND(G29*$D$7,2)","v":0}]
[null,null,"Darbuotojo vardas pavardė"]
[null,null,"Darbuotojo vardas pavardė"]
[null,null,"Darbuotojo vardas pavardė"]
[null,null,"Darbuotojo vardas pavardė"]
["5.3.3","Pareigybės pavadinimas","Darbuotojo vardas pavardė","val.",null,{"$f":"IFERROR(ROUND(AVERAGE(K34:K38),2),\"0\")","v":"0"},{"$f":"ROUND(E34*F34,2)","v":0},{"$f":"ROUND(G34*$D$7,2)","v":0}]
[null,null,"Darbuotojo vardas pavardė"]
[null,null,"Darbuotojo vardas pavardė"]
[null,null,"Darbuotojo vardas pavardė"]
[null,null,"Darbuotojo vardas pavardė"]
["5.3.4","Pareigybės pavadinimas","Darbuotojo vardas pavardė","val.",null,{"$f":"IFERROR(ROUND(AVERAGE(K39:K43),2),\"0\")","v":"0"},{"$f":"ROUND(E39*F39,2)","v":0},{"$f":"ROUND(G39*$D$7,2)","v":0}]
[null,null,"Darbuotojo vardas pavardė"]
[null,null,"Darbuotojo vardas pavardė"]
[null,null,"Darbuotojo vardas pavardė"]
[null,null,"Darbuotojo vardas pavardė"]
["5.3.5","Pareigybės pavadinimas","Darbuotojo vardas pavardė","val.",null,{"$f":"IFERROR(ROUND(AVERAGE(K44:K48),2),\"0\")","v":"0"},{"$f":"ROUND(E44*F44,2)","v":0},{"$f":"ROUND(G44*$D$7,2)","v":0}]
[null,null,"Darbuotojo vardas pavardė"]
[null,null,"Darbuotojo vardas pavardė"]
[null,null,"Darbuotojo vardas pavardė"]
[null,null,"Darbuotojo vardas pavardė"]
["5.4","Projektą vykdančio personalo komandiruočių išlaidos",null,null,null,null,{"$f":"SUM(G50,G57,G64,G71,G78)","v":0},{"$f":"SUM(H50,H57,H64,H71,H78)","v":0}]
["5.4.1","Komandiruotės pavadinimas, vieta, trukmė dienomis, vykstančių asmenų skaičius","Iš viso komandiruotei",null,null,null,{"$f":"SUM(G51:G56)","v":0},{"$f":"ROUND(G50*$D$7,2)","v":0}]
[null,null,"Dienpinigiai",null,null,null,{"$f":"ROUND(E51*F51,2)","v":0}]
[null,null,"Gyvenamojo ploto nuoma",null,null,null,0]
[null,null,"Kelionės išlaidos",null,null,null,0]
[null,null,"Dalyvavimo mokestis",null,null,null,0]
[null,null,"Kitos išlaidų pavadinimas",null,null,null,0]
[null,null,"Kitos išlaidų pavadinimas",null,null,null,0]
["5.4.2","Komandiruotės pavadinimas, vieta, trukmė dienomis, vykstančių asmenų skaičius","Iš viso komandiruotei",null,null,null,{"$f":"SUM(G58:G63)","v":0},{"$f":"ROUND(G57*$D$7,2)","v":0}]
[null,null,"Dienpinigiai",null,null,null,{"$f":"ROUND(E58*F58,2)","v":0}]
[null,null,"Gyvenamojo ploto nuoma",null,null,null,0]
[null,null,"Kelionės išlaidos",null,null,null,0]
[null,null,"Dalyvavimo mokestis",null,null,null,0]
[null,null,"Kitos išlaidų pavadinimas",null,null,null,0]
[null,null,"Kitos išlaidų pavadinimas",null,null,null,0]
["5.4.3","Komandiruotės pavadinimas, vieta, trukmė dienomis, vykstančių asmenų skaičius","Iš viso komandiruotei",null,null,null,{"$f":"SUM(G65:G70)","v":0},{"$f":"ROUND(G64*$D$7,2)","v":0}]
[null,null,"Dienpinigiai",null,null,null,{"$f":"ROUND(E65*F65,2)","v":0}]
[null,null,"Gyvenamojo ploto nuoma",null,null,null,0]
[null,null,"Kelionės išlaidos",null,null,null,0]
[null,null,"Dalyvavimo mokestis",null,null,null,0]
[null,null,"Kitos išlaidų pavadinimas",null,null,null,0]
[null,null,"Kitos išlaidų pavadinimas",null,null,null,0]
["5.4.4","Komandiruotės pavadinimas, vieta, trukmė dienomis, vykstančių asmenų skaičius","Iš viso komandiruotei",null,null,null,{"$f":"SUM(G72:G77)","v":0},{"$f":"ROUND(G71*$D$7,2)","v":0}]
[null,null,"Dienpinigiai",null,null,null,{"$f":"ROUND(E72*F72,2)","v":0}]
[null,null,"Gyvenamojo ploto nuoma",null,null,null,0]
[null,null,"Kelionės išlaidos",null,null,null,0]
[null,null,"Dalyvavimo mokestis",null,null,null,0]
[null,null,"Kitos išlaidų pavadinimas",null,null,null,0]
[null,null,"Kitos išlaidų pavadinimas",null,null,null,0]
["5.4.5","Komandiruotės pavadinimas, vieta, trukmė dienomis, vykstančių asmenų skaičius","Iš viso komandiruotei",null,null,null,{"$f":"SUM(G79:G84)","v":0},{"$f":"ROUND(G78*$D$7,2)","v":0}]
[null,null,"Dienpinigiai",null,null,null,{"$f":"ROUND(E79*F79,2)","v":0}]
[null,null,"Gyvenamojo ploto nuoma",null,null,null,0]
[null,null,"Kelionės išlaidos",null,null,null,0]
[null,null,"Dalyvavimo mokestis",null,null,null,0]
[null,null,"Kitos išlaidų pavadinimas",null,null,null,0]
[null,null,"Kitos išlaidų pavadinimas",null,null,null,0]
["Iš viso tinkamų finansuoti išlaidų:",null,null,null,null,null,{"$f":"G10","v":0},{"$f":"H10","v":0}]

{"sheet":"2","index":3,"n_rows":85,"n_cols":11,"rows_kept":85,"cut":false,"hidden":false,"merged":[[77,0,83,0],[77,1,83,1],[77,8,83,8],[84,0,84,5],[63,0,69,0],[63,1,69,1],[63,8,69,8],[70,0,76,0],[70,1,76,1],[70,8,76,8],[49,0,55,0],[49,1,55,1],[49,8,55,8],[48,1,48,5],[56,0,62,0],[56,1,62,1],[56,8,62,8],[43,8,47,8],[43,0,47,0],[43,1,47,1],[43,3,47,3],[43,4,47,4],[43,5,47,5],[43,7,47,7],[43,6,47,6],[18,1,18,2],[19,1,19,2],[20,1,20,2],[21,1,21,2],[15,1,15,2],[16,1,16,5],[12,1,12,2],[13,1,13,2],[14,1,14,2],[17,1,17,2],[0,3,0,8],[2,0,2,2],[2,3,2,8],[11,1,11,2],[9,1,9,5],[3,3,3,4],[3,5,3,6],[4,0,4,2],[4,3,4,8],[8,1,8,2],[10,1,10,5],[22,1,22,5],[23,0,27,0],[23,1,27,1],[23,3,27,3],[23,4,27,4],[23,5,27,5],[23,6,27,6],[23,7,27,7],[23,8,27,8],[28,0,32,0],[28,1,32,1],[28,3,32,3],[28,4,32,4],[28,5,32,5],[28,6,32,6],[28,7,32,7],[28,8,32,8],[33,6,37,6],[33,7,37,7],[33,8,37,8],[38,0,42,0],[38,1,42,1],[38,3,42,3],[38,4,42,4],[38,5,42,5],[38,6,42,6],[38,7,42,7],[38,8,42,8],[33,0,37,0],[33,1,37,1],[33,3,37,3],[33,4,37,4],[33,5,37,5]]}
[null,null,"Pasirinkite veiklos tipą:"]
[null,null,"Fizinio rodiklio Nr.:"]
["Fizinio rodiklio pavadinimas:"]
[null,null,"Fizinio rodiklio matavimo vnt.:",null,null,"Fizinio rodiklio vnt. skaičius:"]
["Juridinis asmuo (pareiškėjas, partneris), atsakingas už fizinį rodiklį:"]
[]
[null,null,"Finansavimo intensyvumas:",null,null,null,"Pasirinkite biudžeto išlaidų kategoriją:"]
[]
["Eil. Nr.","Išlaidų kategorijos pavadinimas",null,"Matavimo vnt.","Kiekis","Vieneto kaina be PVM, Eur","Tinkamų finansuoti išlaidų suma be PVM, Eur","Finansavimo suma, Eur","Išlaidų pagrindimo dokumentų pavadinimas, data ir Nr."]
[5,"PROJEKTO VYKDYMAS",null,null,null,null,{"$f":"G11+G17+G23+G49","v":0},{"$f":"H11+H17+H23+H49","v":0}]
["5.1","Produkto sertifikavimas",null,null,null,null,{"$f":"SUM(G12:G16)","v":0},{"$f":"SUM(H12:H16)","v":0}]
["5.1.1","Išlaidų pavadinimas",null,null,null,null,{"$f":"ROUND(E12*F12,2)","v":0},{"$f":"ROUND(G12*$D$7,2)","v":0}]
["5.1.2","Išlaidų pavadinimas",null,null,null,null,0,0]
["5.1.3","Išlaidų pavadinimas",null,null,null,null,0,0]
["5.1.4","Išlaidų pavadinimas",null,null,null,null,0,0]
["5.1.5","Išlaidų pavadinimas",null,null,null,null,0,0]
["5.2","Sertifikavimo paslaugos",null,null,null,null,{"$f":"SUM(G18:G22)","v":0},{"$f":"SUM(H18:H22)","v":0}]
["5.2.1","Paslaugos pavadinimas",null,null,null,null,{"$f":"ROUND(E18*F18,2)","v":0},0]
["5.2.2","Paslaugos pavadinimas",null,null,null,null,0,0]
["5.2.3","Paslaugos pavadinimas",null,null,null,null,0,0]
["5.2.4","Paslaugos pavadinimas",null,null,null,null,0,0]
["5.2.5","Paslaugos pavadinimas",null,null,null,null,0,0]
["5.3","Projektą vykdančio personalo darbo užmokestis ir išlaidos su darbo santykiais susijusiems darbdavio įsipareigojimams",null,null,null,null,{"$f":"SUM(G24:G48)","v":0},{"$f":"SUM(H24:H48)","v":0},null,null,"Faktiškai gaunamas darbo užmokesti už 1 valandą pagal  pastarųjų 6 mėn. vidurkį, Eur"]
["5.3.1","Pareigybės pavadinimas","Darbuotojo vardas pavardė","val.",null,{"$f":"IFERROR(ROUND(AVERAGE(K24:K28),2),\"0\")","v":"0"},{"$f":"ROUND(E24*F24,2)","v":0},{"$f":"ROUND(G24*$D$7,2)","v":0}]
[null,null,"Darbuotojo vardas pavardė"]
[null,null,"Darbuotojo vardas pavardė"]
[null,null,"Darbuotojo vardas pavardė"]
[null,null,"Darbuotojo vardas pavardė"]
["5.3.2","Pareigybės pavadinimas","Darbuotojo vardas pavardė","val.",null,{"$f":"IFERROR(ROUND(AVERAGE(K29:K33),2),\"0\")","v":"0"},{"$f":"ROUND(E29*F29,2)","v":0},{"$f":"ROUND(G29*$D$7,2)","v":0}]
[null,null,"Darbuotojo vardas pavardė"]
[null,null,"Darbuotojo vardas pavardė"]
[null,null,"Darbuotojo vardas pavardė"]
[null,null,"Darbuotojo vardas pavardė"]
["5.3.3","Pareigybės pavadinimas","Darbuotojo vardas pavardė","val.",null,{"$f":"IFERROR(ROUND(AVERAGE(K34:K38),2),\"0\")","v":"0"},{"$f":"ROUND(E34*F34,2)","v":0},{"$f":"ROUND(G34*$D$7,2)","v":0}]
[null,null,"Darbuotojo vardas pavardė"]
[null,null,"Darbuotojo vardas pavardė"]
[null,null,"Darbuotojo vardas pavardė"]
[null,null,"Darbuotojo vardas pavardė"]
["5.3.4","Pareigybės pavadinimas","Darbuotojo vardas pavardė","val.",null,{"$f":"IFERROR(ROUND(AVERAGE(K39:K43),2),\"0\")","v":"0"},{"$f":"ROUND(E39*F39,2)","v":0},{"$f":"ROUND(G39*$D$7,2)","v":0}]
[null,null,"Darbuotojo vardas pavardė"]
[null,null,"Darbuotojo vardas pavardė"]
[null,null,"Darbuotojo vardas pavardė"]
[null,null,"Darbuotojo vardas pavardė"]
["5.3.5","Pareigybės pavadinimas","Darbuotojo vardas pavardė","val.",null,{"$f":"IFERROR(ROUND(AVERAGE(K44:K48),2),\"0\")","v":"0"},{"$f":"ROUND(E44*F44,2)","v":0},{"$f":"ROUND(G44*$D$7,2)","v":0}]
[null,null,"Darbuotojo vardas pavardė"]
[null,null,"Darbuotojo vardas pavardė"]
[null,null,"Darbuotojo vardas pavardė"]
[null,null,"Darbuotojo vardas pavardė"]
["5.4","Projektą vykdančio personalo komandiruočių išlaidos",null,null,null,null,{"$f":"SUM(G50,G57,G64,G71,G78)","v":0},{"$f":"SUM(H50,H57,H64,H71,H78)","v":0}]
["5.4.1","Komandiruotės pavadinimas, vieta, trukmė dienomis, vykstančių asmenų skaičius","Iš viso komandiruotei",null,null,null,{"$f":"SUM(G51:G56)","v":0},{"$f":"ROUND(G50*$D$7,2)","v":0}]
[null,null,"Dienpinigiai",null,null,null,{"$f":"ROUND(E51*F51,2)","v":0}]
[null,null,"Gyvenamojo ploto nuoma",null,null,null,0]
[null,null,"Kelionės išlaidos",null,null,null,0]
[null,null,"Dalyvavimo mokestis",null,null,null,0]
[null,null,"Kitos išlaidų pavadinimas",null,null,null,0]
[null,null,"Kitos išlaidų pavadinimas",null,null,null,0]
["5.4.2","Komandiruotės pavadinimas, vieta, trukmė dienomis, vykstančių asmenų skaičius","Iš viso komandiruotei",null,null,null,{"$f":"SUM(G58:G63)","v":0},{"$f":"ROUND(G57*$D$7,2)","v":0}]
[null,null,"Dienpinigiai",null,null,null,{"$f":"ROUND(E58*F58,2)","v":0}]
[null,null,"Gyvenamojo ploto nuoma",null,null,null,0]
[null,null,"Kelionės išlaidos",null,null,null,0]
[null,null,"Dalyvavimo mokestis",null,null,null,0]
[null,null,"Kitos išlaidų pavadinimas",null,null,null,0]
[null,null,"Kitos išlaidų pavadinimas",null,null,null,0]
["5.4.3","Komandiruotės pavadinimas, vieta, trukmė dienomis, vykstančių asmenų skaičius","Iš viso komandiruotei",null,null,null,{"$f":"SUM(G65:G70)","v":0},{"$f":"ROUND(G64*$D$7,2)","v":0}]
[null,null,"Dienpinigiai",null,null,null,{"$f":"ROUND(E65*F65,2)","v":0}]
[null,null,"Gyvenamojo ploto nuoma",null,null,null,0]
[null,null,"Kelionės išlaidos",null,null,null,0]
[null,null,"Dalyvavimo mokestis",null,null,null,0]
[null,null,"Kitos išlaidų pavadinimas",null,null,null,0]
[null,null,"Kitos išlaidų pavadinimas",null,null,null,0]
["5.4.4","Komandiruotės pavadinimas, vieta, trukmė dienomis, vykstančių asmenų skaičius","Iš viso komandiruotei",null,null,null,{"$f":"SUM(G72:G77)","v":0},{"$f":"ROUND(G71*$D$7,2)","v":0}]
[null,null,"Dienpinigiai",null,null,null,{"$f":"ROUND(E72*F72,2)","v":0}]
[null,null,"Gyvenamojo ploto nuoma",null,null,null,0]
[null,null,"Kelionės išlaidos",null,null,null,0]
[null,null,"Dalyvavimo mokestis",null,null,null,0]
[null,null,"Kitos išlaidų pavadinimas",null,null,null,0]
[null,null,"Kitos išlaidų pavadinimas",null,null,null,0]
["5.4.5","Komandiruotės pavadinimas, vieta, trukmė dienomis, vykstančių asmenų skaičius","Iš viso komandiruotei",null,null,null,{"$f":"SUM(G79:G84)","v":0},{"$f":"ROUND(G78*$D$7,2)","v":0}]
[null,null,"Dienpinigiai",null,null,null,{"$f":"ROUND(E79*F79,2)","v":0}]
[null,null,"Gyvenamojo ploto nuoma",null,null,null,0]
[null,null,"Kelionės išlaidos",null,null,null,0]
[null,null,"Dalyvavimo mokestis",null,null,null,0]
[null,null,"Kitos išlaidų pavadinimas",null,null,null,0]
[null,null,"Kitos išlaidų pavadinimas",null,null,null,0]
["Iš viso tinkamų finansuoti išlaidų:",null,null,null,null,null,{"$f":"G10","v":0},{"$f":"H10","v":0}]

{"sheet":"3","index":4,"n_rows":85,"n_cols":11,"rows_kept":85,"cut":false,"hidden":false,"merged":[[77,0,83,0],[77,1,83,1],[77,8,83,8],[84,0,84,5],[63,0,69,0],[63,1,69,1],[63,8,69,8],[70,0,76,0],[70,1,76,1],[70,8,76,8],[49,0,55,0],[49,1,55,1],[49,8,55,8],[48,1,48,5],[56,0,62,0],[56,1,62,1],[56,8,62,8],[43,8,47,8],[43,0,47,0],[43,1,47,1],[43,3,47,3],[43,4,47,4],[43,5,47,5],[43,7,47,7],[43,6,47,6],[18,1,18,2],[19,1,19,2],[20,1,20,2],[21,1,21,2],[15,1,15,2],[16,1,16,5],[12,1,12,2],[13,1,13,2],[14,1,14,2],[17,1,17,2],[0,3,0,8],[2,0,2,2],[2,3,2,8],[11,1,11,2],[9,1,9,5],[3,3,3,4],[3,5,3,6],[4,0,4,2],[4,3,4,8],[8,1,8,2],[10,1,10,5],[22,1,22,5],[23,0,27,0],[23,1,27,1],[23,3,27,3],[23,4,27,4],[23,5,27,5],[23,6,27,6],[23,7,27,7],[23,8,27,8],[28,0,32,0],[28,1,32,1],[28,3,32,3],[28,4,32,4],[28,5,32,5],[28,6,32,6],[28,7,32,7],[28,8,32,8],[33,6,37,6],[33,7,37,7],[33,8,37,8],[38,0,42,0],[38,1,42,1],[38,3,42,3],[38,4,42,4],[38,5,42,5],[38,6,42,6],[38,7,42,7],[38,8,42,8],[33,0,37,0],[33,1,37,1],[33,3,37,3],[33,4,37,4],[33,5,37,5]]}
[null,null,"Pasirinkite veiklos tipą:"]
[null,null,"Fizinio rodiklio Nr.:"]
["Fizinio rodiklio pavadinimas:"]
[null,null,"Fizinio rodiklio matavimo vnt.:",null,null,"Fizinio rodiklio vnt. skaičius:"]
["Juridinis asmuo (pareiškėjas, partneris), atsakingas už fizinį rodiklį:"]
[]
[null,null,"Finansavimo intensyvumas:",null,null,null,"Pasirinkite biudžeto išlaidų kategoriją:"]
[]
["Eil. Nr.","Išlaidų kategorijos pavadinimas",null,"Matavimo vnt.","Kiekis","Vieneto kaina be PVM, Eur","Tinkamų finansuoti išlaidų suma be PVM, Eur","Finansavimo suma, Eur","Išlaidų pagrindimo dokumentų pavadinimas, data ir Nr."]
[5,"PROJEKTO VYKDYMAS",null,null,null,null,{"$f":"G11+G17+G23+G49","v":0},{"$f":"H11+H17+H23+H49","v":0}]
["5.1","Produkto sertifikavimas",null,null,null,null,{"$f":"SUM(G12:G16)","v":0},{"$f":"SUM(H12:H16)","v":0}]
["5.1.1","Išlaidų pavadinimas",null,null,null,null,{"$f":"ROUND(E12*F12,2)","v":0},{"$f":"ROUND(G12*$D$7,2)","v":0}]
["5.1.2","Išlaidų pavadinimas",null,null,null,null,0,0]
["5.1.3","Išlaidų pavadinimas",null,null,null,null,0,0]
["5.1.4","Išlaidų pavadinimas",null,null,null,null,0,0]
["5.1.5","Išlaidų pavadinimas",null,null,null,null,0,0]
["5.2","Sertifikavimo paslaugos",null,null,null,null,{"$f":"SUM(G18:G22)","v":0},{"$f":"SUM(H18:H22)","v":0}]
["5.2.1","Paslaugos pavadinimas",null,null,null,null,{"$f":"ROUND(E18*F18,2)","v":0},0]
["5.2.2","Paslaugos pavadinimas",null,null,null,null,0,0]
["5.2.3","Paslaugos pavadinimas",null,null,null,null,0,0]
["5.2.4","Paslaugos pavadinimas",null,null,null,null,0,0]
["5.2.5","Paslaugos pavadinimas",null,null,null,null,0,0]
["5.3","Projektą vykdančio personalo darbo užmokestis ir išlaidos su darbo santykiais susijusiems darbdavio įsipareigojimams",null,null,null,null,{"$f":"SUM(G24:G48)","v":0},{"$f":"SUM(H24:H48)","v":0},null,null,"Faktiškai gaunamas darbo užmokesti už 1 valandą pagal  pastarųjų 6 mėn. vidurkį, Eur"]
["5.3.1","Pareigybės pavadinimas","Darbuotojo vardas pavardė","val.",null,{"$f":"IFERROR(ROUND(AVERAGE(K24:K28),2),\"0\")","v":"0"},{"$f":"ROUND(E24*F24,2)","v":0},{"$f":"ROUND(G24*$D$7,2)","v":0}]
[null,null,"Darbuotojo vardas pavardė"]
[null,null,"Darbuotojo vardas pavardė"]
[null,null,"Darbuotojo vardas pavardė"]
[null,null,"Darbuotojo vardas pavardė"]
["5.3.2","Pareigybės pavadinimas","Darbuotojo vardas pavardė","val.",null,{"$f":"IFERROR(ROUND(AVERAGE(K29:K33),2),\"0\")","v":"0"},{"$f":"ROUND(E29*F29,2)","v":0},{"$f":"ROUND(G29*$D$7,2)","v":0}]
[null,null,"Darbuotojo vardas pavardė"]
[null,null,"Darbuotojo vardas pavardė"]
[null,null,"Darbuotojo vardas pavardė"]
[null,null,"Darbuotojo vardas pavardė"]
["5.3.3","Pareigybės pavadinimas","Darbuotojo vardas pavardė","val.",null,{"$f":"IFERROR(ROUND(AVERAGE(K34:K38),2),\"0\")","v":"0"},{"$f":"ROUND(E34*F34,2)","v":0},{"$f":"ROUND(G34*$D$7,2)","v":0}]
[null,null,"Darbuotojo vardas pavardė"]
[null,null,"Darbuotojo vardas pavardė"]
[null,null,"Darbuotojo vardas pavardė"]
[null,null,"Darbuotojo vardas pavardė"]
["5.3.4","Pareigybės pavadinimas","Darbuotojo vardas pavardė","val.",null,{"$f":"IFERROR(ROUND(AVERAGE(K39:K43),2),\"0\")","v":"0"},{"$f":"ROUND(E39*F39,2)","v":0},{"$f":"ROUND(G39*$D$7,2)","v":0}]
[null,null,"Darbuotojo vardas pavardė"]
[null,null,"Darbuotojo vardas pavardė"]
[null,null,"Darbuotojo vardas pavardė"]
[null,null,"Darbuotojo vardas pavardė"]
["5.3.5","Pareigybės pavadinimas","Darbuotojo vardas pavardė","val.",null,{"$f":"IFERROR(ROUND(AVERAGE(K44:K48),2),\"0\")","v":"0"},{"$f":"ROUND(E44*F44,2)","v":0},{"$f":"ROUND(G44*$D$7,2)","v":0}]
[null,null,"Darbuotojo vardas pavardė"]
[null,null,"Darbuotojo vardas pavardė"]
[null,null,"Darbuotojo vardas pavardė"]
[null,null,"Darbuotojo vardas pavardė"]
["5.4","Projektą vykdančio personalo komandiruočių išlaidos",null,null,null,null,{"$f":"SUM(G50,G57,G64,G71,G78)","v":0},{"$f":"SUM(H50,H57,H64,H71,H78)","v":0}]
["5.4.1","Komandiruotės pavadinimas, vieta, trukmė dienomis, vykstančių asmenų skaičius","Iš viso komandiruotei",null,null,null,{"$f":"SUM(G51:G56)","v":0},{"$f":"ROUND(G50*$D$7,2)","v":0}]
[null,null,"Dienpinigiai",null,null,null,{"$f":"ROUND(E51*F51,2)","v":0}]
[null,null,"Gyvenamojo ploto nuoma",null,null,null,0]
[null,null,"Kelionės išlaidos",null,null,null,0]
[null,null,"Dalyvavimo mokestis",null,null,null,0]
[null,null,"Kitos išlaidų pavadinimas",null,null,null,0]
[null,null,"Kitos išlaidų pavadinimas",null,null,null,0]
["5.4.2","Komandiruotės pavadinimas, vieta, trukmė dienomis, vykstančių asmenų skaičius","Iš viso komandiruotei",null,null,null,{"$f":"SUM(G58:G63)","v":0},{"$f":"ROUND(G57*$D$7,2)","v":0}]
[null,null,"Dienpinigiai",null,null,null,{"$f":"ROUND(E58*F58,2)","v":0}]
[null,null,"Gyvenamojo ploto nuoma",null,null,null,0]
[null,null,"Kelionės išlaidos",null,null,null,0]
[null,null,"Dalyvavimo mokestis",null,null,null,0]
[null,null,"Kitos išlaidų pavadinimas",null,null,null,0]
[null,null,"Kitos išlaidų pavadinimas",null,null,null,0]
["5.4.3","Komandiruotės pavadinimas, vieta, trukmė dienomis, vykstančių asmenų skaičius","Iš viso komandiruotei",null,null,null,{"$f":"SUM(G65:G70)","v":0},{"$f":"ROUND(G64*$D$7,2)","v":0}]
[null,null,"Dienpinigiai",null,null,null,{"$f":"ROUND(E65*F65,2)","v":0}]
[null,null,"Gyvenamojo ploto nuoma",null,null,null,0]
[null,null,"Kelionės išlaidos",null,null,null,0]
[null,null,"Dalyvavimo mokestis",null,null,null,0]
[null,null,"Kitos išlaidų pavadinimas",null,null,null,0]
[null,null,"Kitos išlaidų pavadinimas",null,null,null,0]
["5.4.4","Komandiruotės pavadinimas, vieta, trukmė dienomis, vykstančių asmenų skaičius","Iš viso komandiruotei",null,null,null,{"$f":"SUM(G72:G77)","v":0},{"$f":"ROUND(G71*$D$7,2)","v":0}]
[null,null,"Dienpinigiai",null,null,null,{"$f":"ROUND(E72*F72,2)","v":0}]
[null,null,"Gyvenamojo ploto nuoma",null,null,null,0]
[null,null,"Kelionės išlaidos",null,null,null,0]
[null,null,"Dalyvavimo mokestis",null,null,null,0]
[null,null,"Kitos išlaidų pavadinimas",null,null,null,0]
[null,null,"Kitos išlaidų pavadinimas",null,null,null,0]
["5.4.5","Komandiruotės pavadinimas, vieta, trukmė dienomis, vykstančių asmenų skaičius","Iš viso komandiruotei",null,null,null,{"$f":"SUM(G79:G84)","v":0},{"$f":"ROUND(G78*$D$7,2)","v":0}]
[null,null,"Dienpinigiai",null,null,null,{"$f":"ROUND(E79*F79,2)","v":0}]
[null,null,"Gyvenamojo ploto nuoma",null,null,null,0]
[null,null,"Kelionės išlaidos",null,null,null,0]
[null,null,"Dalyvavimo mokestis",null,null,null,0]
[null,null,"Kitos išlaidų pavadinimas",null,null,null,0]
[null,null,"Kitos išlaidų pavadinimas",null,null,null,0]
["Iš viso tinkamų finansuoti išlaidų:",null,null,null,null,null,{"$f":"G10","v":0},{"$f":"H10","v":0}]

{"sheet":"4","index":5,"n_rows":85,"n_cols":11,"rows_kept":85,"cut":false,"hidden":false,"merged":[[77,0,83,0],[77,1,83,1],[77,8,83,8],[84,0,84,5],[63,0,69,0],[63,1,69,1],[63,8,69,8],[70,0,76,0],[70,1,76,1],[70,8,76,8],[49,0,55,0],[49,1,55,1],[49,8,55,8],[48,1,48,5],[56,0,62,0],[56,1,62,1],[56,8,62,8],[43,8,47,8],[43,0,47,0],[43,1,47,1],[43,3,47,3],[43,4,47,4],[43,5,47,5],[43,7,47,7],[43,6,47,6],[18,1,18,2],[19,1,19,2],[20,1,20,2],[21,1,21,2],[15,1,15,2],[16,1,16,5],[12,1,12,2],[13,1,13,2],[14,1,14,2],[17,1,17,2],[0,3,0,8],[2,0,2,2],[2,3,2,8],[11,1,11,2],[9,1,9,5],[3,3,3,4],[3,5,3,6],[4,0,4,2],[4,3,4,8],[8,1,8,2],[10,1,10,5],[22,1,22,5],[23,0,27,0],[23,1,27,1],[23,3,27,3],[23,4,27,4],[23,5,27,5],[23,6,27,6],[23,7,27,7],[23,8,27,8],[28,0,32,0],[28,1,32,1],[28,3,32,3],[28,4,32,4],[28,5,32,5],[28,6,32,6],[28,7,32,7],[28,8,32,8],[33,6,37,6],[33,7,37,7],[33,8,37,8],[38,0,42,0],[38,1,42,1],[38,3,42,3],[38,4,42,4],[38,5,42,5],[38,6,42,6],[38,7,42,7],[38,8,42,8],[33,0,37,0],[33,1,37,1],[33,3,37,3],[33,4,37,4],[33,5,37,5]]}
[null,null,"Pasirinkite veiklos tipą:"]
[null,null,"Fizinio rodiklio Nr.:"]
["Fizinio rodiklio pavadinimas:"]
[null,null,"Fizinio rodiklio matavimo vnt.:",null,null,"Fizinio rodiklio vnt. skaičius:"]
["Juridinis asmuo (pareiškėjas, partneris), atsakingas už fizinį rodiklį:"]
[]
[null,null,"Finansavimo intensyvumas:",null,null,null,"Pasirinkite biudžeto išlaidų kategoriją:"]
[]
["Eil. Nr.","Išlaidų kategorijos pavadinimas",null,"Matavimo vnt.","Kiekis","Vieneto kaina be PVM, Eur","Tinkamų finansuoti išlaidų suma be PVM, Eur","Finansavimo suma, Eur","Išlaidų pagrindimo dokumentų pavadinimas, data ir Nr."]
[5,"PROJEKTO VYKDYMAS",null,null,null,null,{"$f":"G11+G17+G23+G49","v":0},{"$f":"H11+H17+G24+H23+H49","v":0}]
["5.1","Produkto sertifikavimas",null,null,null,null,{"$f":"SUM(G12:G16)","v":0},{"$f":"SUM(H12:H16)","v":0}]
["5.1.1","Išlaidų pavadinimas",null,null,null,null,{"$f":"ROUND(E12*F12,2)","v":0},{"$f":"ROUND(G12*$D$7,2)","v":0}]
["5.1.2","Išlaidų pavadinimas",null,null,null,null,0,0]
["5.1.3","Išlaidų pavadinimas",null,null,null,null,0,0]
["5.1.4","Išlaidų pavadinimas",null,null,null,null,0,0]
["5.1.5","Išlaidų pavadinimas",null,null,null,null,0,0]
["5.2","Sertifikavimo paslaugos",null,null,null,null,{"$f":"SUM(G18:G22)","v":0},{"$f":"SUM(H18:H22)","v":0}]
["5.2.1","Paslaugos pavadinimas",null,null,null,null,{"$f":"ROUND(E18*F18,2)","v":0},0]
["5.2.2","Paslaugos pavadinimas",null,null,null,null,0,0]
["5.2.3","Paslaugos pavadinimas",null,null,null,null,0,0]
["5.2.4","Paslaugos pavadinimas",null,null,null,null,0,0]
["5.2.5","Paslaugos pavadinimas",null,null,null,null,0,0]
["5.3","Projektą vykdančio personalo darbo užmokestis ir išlaidos su darbo santykiais susijusiems darbdavio įsipareigojimams",null,null,null,null,{"$f":"SUM(G24:G48)","v":0},{"$f":"SUM(H24:H48)","v":0},null,null,"Faktiškai gaunamas darbo užmokesti už 1 valandą pagal  pastarųjų 6 mėn. vidurkį, Eur"]
["5.3.1","Pareigybės pavadinimas","Darbuotojo vardas pavardė","val.",null,{"$f":"IFERROR(ROUND(AVERAGE(K24:K28),2),\"0\")","v":"0"},{"$f":"ROUND(E24*F24,2)","v":0},{"$f":"ROUND(G24*$D$7,2)","v":0}]
[null,null,"Darbuotojo vardas pavardė"]
[null,null,"Darbuotojo vardas pavardė"]
[null,null,"Darbuotojo vardas pavardė"]
[null,null,"Darbuotojo vardas pavardė"]
["5.3.2","Pareigybės pavadinimas","Darbuotojo vardas pavardė","val.",null,{"$f":"IFERROR(ROUND(AVERAGE(K29:K33),2),\"0\")","v":"0"},{"$f":"ROUND(E29*F29,2)","v":0},{"$f":"ROUND(G29*$D$7,2)","v":0}]
[null,null,"Darbuotojo vardas pavardė"]
[null,null,"Darbuotojo vardas pavardė"]
[null,null,"Darbuotojo vardas pavardė"]
[null,null,"Darbuotojo vardas pavardė"]
["5.3.3","Pareigybės pavadinimas","Darbuotojo vardas pavardė","val.",null,{"$f":"IFERROR(ROUND(AVERAGE(K34:K38),2),\"0\")","v":"0"},{"$f":"ROUND(E34*F34,2)","v":0},{"$f":"ROUND(G34*$D$7,2)","v":0}]
[null,null,"Darbuotojo vardas pavardė"]
[null,null,"Darbuotojo vardas pavardė"]
[null,null,"Darbuotojo vardas pavardė"]
[null,null,"Darbuotojo vardas pavardė"]
["5.3.4","Pareigybės pavadinimas","Darbuotojo vardas pavardė","val.",null,{"$f":"IFERROR(ROUND(AVERAGE(K39:K43),2),\"0\")","v":"0"},{"$f":"ROUND(E39*F39,2)","v":0},{"$f":"ROUND(G39*$D$7,2)","v":0}]
[null,null,"Darbuotojo vardas pavardė"]
[null,null,"Darbuotojo vardas pavardė"]
[null,null,"Darbuotojo vardas pavardė"]
[null,null,"Darbuotojo vardas pavardė"]
["5.3.5","Pareigybės pavadinimas","Darbuotojo vardas pavardė","val.",null,{"$f":"IFERROR(ROUND(AVERAGE(K44:K48),2),\"0\")","v":"0"},{"$f":"ROUND(E44*F44,2)","v":0},{"$f":"ROUND(G44*$D$7,2)","v":0}]
[null,null,"Darbuotojo vardas pavardė"]
[null,null,"Darbuotojo vardas pavardė"]
[null,null,"Darbuotojo vardas pavardė"]
[null,null,"Darbuotojo vardas pavardė"]
["5.4","Projektą vykdančio personalo komandiruočių išlaidos",null,null,null,null,{"$f":"SUM(G50,G57,G64,G71,G78)","v":0},{"$f":"SUM(H50,H57,H64,H71,H78)","v":0}]
["5.4.1","Komandiruotės pavadinimas, vieta, trukmė dienomis, vykstančių asmenų skaičius","Iš viso komandiruotei",null,null,null,{"$f":"SUM(G51:G56)","v":0},{"$f":"ROUND(G50*$D$7,2)","v":0}]
[null,null,"Dienpinigiai",null,null,null,{"$f":"ROUND(E51*F51,2)","v":0}]
[null,null,"Gyvenamojo ploto nuoma",null,null,null,0]
[null,null,"Kelionės išlaidos",null,null,null,0]
[null,null,"Dalyvavimo mokestis",null,null,null,0]
[null,null,"Kitos išlaidų pavadinimas",null,null,null,0]
[null,null,"Kitos išlaidų pavadinimas",null,null,null,0]
["5.4.2","Komandiruotės pavadinimas, vieta, trukmė dienomis, vykstančių asmenų skaičius","Iš viso komandiruotei",null,null,null,{"$f":"SUM(G58:G63)","v":0},{"$f":"ROUND(G57*$D$7,2)","v":0}]
[null,null,"Dienpinigiai",null,null,null,{"$f":"ROUND(E58*F58,2)","v":0}]
[null,null,"Gyvenamojo ploto nuoma",null,null,null,0]
[null,null,"Kelionės išlaidos",null,null,null,0]
[null,null,"Dalyvavimo mokestis",null,null,null,0]
[null,null,"Kitos išlaidų pavadinimas",null,null,null,0]
[null,null,"Kitos išlaidų pavadinimas",null,null,null,0]
["5.4.3","Komandiruotės pavadinimas, vieta, trukmė dienomis, vykstančių asmenų skaičius","Iš viso komandiruotei",null,null,null,{"$f":"SUM(G65:G70)","v":0},{"$f":"ROUND(G64*$D$7,2)","v":0}]
[null,null,"Dienpinigiai",null,null,null,{"$f":"ROUND(E65*F65,2)","v":0}]
[null,null,"Gyvenamojo ploto nuoma",null,null,null,0]
[null,null,"Kelionės išlaidos",null,null,null,0]
[null,null,"Dalyvavimo mokestis",null,null,null,0]
[null,null,"Kitos išlaidų pavadinimas",null,null,null,0]
[null,null,"Kitos išlaidų pavadinimas",null,null,null,0]
["5.4.4","Komandiruotės pavadinimas, vieta, trukmė dienomis, vykstančių asmenų skaičius","Iš viso komandiruotei",null,null,null,{"$f":"SUM(G72:G77)","v":0},{"$f":"ROUND(G71*$D$7,2)","v":0}]
[null,null,"Dienpinigiai",null,null,null,{"$f":"ROUND(E72*F72,2)","v":0}]
[null,null,"Gyvenamojo ploto nuoma",null,null,null,0]
[null,null,"Kelionės išlaidos",null,null,null,0]
[null,null,"Dalyvavimo mokestis",null,null,null,0]
[null,null,"Kitos išlaidų pavadinimas",null,null,null,0]
[null,null,"Kitos išlaidų pavadinimas",null,null,null,0]
["5.4.5","Komandiruotės pavadinimas, vieta, trukmė dienomis, vykstančių asmenų skaičius","Iš viso komandiruotei",null,null,null,{"$f":"SUM(G79:G84)","v":0},{"$f":"ROUND(G78*$D$7,2)","v":0}]
[null,null,"Dienpinigiai",null,null,null,{"$f":"ROUND(E79*F79,2)","v":0}]
[null,null,"Gyvenamojo ploto nuoma",null,null,null,0]
[null,null,"Kelionės išlaidos",null,null,null,0]
[null,null,"Dalyvavimo mokestis",null,null,null,0]
[null,null,"Kitos išlaidų pavadinimas",null,null,null,0]
[null,null,"Kitos išlaidų pavadinimas",null,null,null,0]
["Iš viso tinkamų finansuoti išlaidų:",null,null,null,null,null,{"$f":"G10","v":0},{"$f":"H10","v":0}]

{"sheet":"5","index":6,"n_rows":85,"n_cols":11,"rows_kept":85,"cut":false,"hidden":false,"merged":[[77,0,83,0],[77,1,83,1],[77,8,83,8],[84,0,84,5],[63,0,69,0],[63,1,69,1],[63,8,69,8],[70,0,76,0],[70,1,76,1],[70,8,76,8],[49,0,55,0],[49,1,55,1],[49,8,55,8],[48,1,48,5],[56,0,62,0],[56,1,62,1],[56,8,62,8],[43,8,47,8],[43,0,47,0],[43,1,47,1],[43,3,47,3],[43,4,47,4],[43,5,47,5],[43,7,47,7],[43,6,47,6],[18,1,18,2],[19,1,19,2],[20,1,20,2],[21,1,21,2],[15,1,15,2],[16,1,16,5],[12,1,12,2],[13,1,13,2],[14,1,14,2],[17,1,17,2],[0,3,0,8],[2,0,2,2],[2,3,2,8],[11,1,11,2],[9,1,9,5],[3,3,3,4],[3,5,3,6],[4,0,4,2],[4,3,4,8],[8,1,8,2],[10,1,10,5],[22,1,22,5],[23,0,27,0],[23,1,27,1],[23,3,27,3],[23,4,27,4],[23,5,27,5],[23,6,27,6],[23,7,27,7],[23,8,27,8],[28,0,32,0],[28,1,32,1],[28,3,32,3],[28,4,32,4],[28,5,32,5],[28,6,32,6],[28,7,32,7],[28,8,32,8],[33,6,37,6],[33,7,37,7],[33,8,37,8],[38,0,42,0],[38,1,42,1],[38,3,42,3],[38,4,42,4],[38,5,42,5],[38,6,42,6],[38,7,42,7],[38,8,42,8],[33,0,37,0],[33,1,37,1],[33,3,37,3],[33,4,37,4],[33,5,37,5]]}
[null,null,"Pasirinkite veiklos tipą:"]
[null,null,"Fizinio rodiklio Nr.:"]
["Fizinio rodiklio pavadinimas:"]
[null,null,"Fizinio rodiklio matavimo vnt.:",null,null,"Fizinio rodiklio vnt. skaičius:"]
["Juridinis asmuo (pareiškėjas, partneris), atsakingas už fizinį rodiklį:"]
[]
[null,null,"Finansavimo intensyvumas:",null,null,null,"Pasirinkite biudžeto išlaidų kategoriją:"]
[]
["Eil. Nr.","Išlaidų kategorijos pavadinimas",null,"Matavimo vnt.","Kiekis","Vieneto kaina be PVM, Eur","Tinkamų finansuoti išlaidų suma be PVM, Eur","Finansavimo suma, Eur","Išlaidų pagrindimo dokumentų pavadinimas, data ir Nr."]
[5,"PROJEKTO VYKDYMAS",null,null,null,null,{"$f":"G11+G17+G23+G49","v":0},{"$f":"H11+H17+H23+H49","v":0}]
["5.1","Produkto sertifikavimas",null,null,null,null,{"$f":"SUM(G12:G16)","v":0},{"$f":"SUM(H12:H16)","v":0}]
["5.1.1","Išlaidų pavadinimas",null,null,null,null,{"$f":"ROUND(E12*F12,2)","v":0},{"$f":"ROUND(G12*$D$7,2)","v":0}]
["5.1.2","Išlaidų pavadinimas",null,null,null,null,0,0]
["5.1.3","Išlaidų pavadinimas",null,null,null,null,0,0]
["5.1.4","Išlaidų pavadinimas",null,null,null,null,0,0]
["5.1.5","Išlaidų pavadinimas",null,null,null,null,0,0]
["5.2","Sertifikavimo paslaugos",null,null,null,null,{"$f":"SUM(G18:G22)","v":0},{"$f":"SUM(H18:H22)","v":0}]
["5.2.1","Paslaugos pavadinimas",null,null,null,null,{"$f":"ROUND(E18*F18,2)","v":0},0]
["5.2.2","Paslaugos pavadinimas",null,null,null,null,0,0]
["5.2.3","Paslaugos pavadinimas",null,null,null,null,0,0]
["5.2.4","Paslaugos pavadinimas",null,null,null,null,0,0]
["5.2.5","Paslaugos pavadinimas",null,null,null,null,0,0]
["5.3","Projektą vykdančio personalo darbo užmokestis ir išlaidos su darbo santykiais susijusiems darbdavio įsipareigojimams",null,null,null,null,{"$f":"SUM(G24:G48)","v":0},{"$f":"SUM(H24:H48)","v":0},null,null,"Faktiškai gaunamas darbo užmokesti už 1 valandą pagal  pastarųjų 6 mėn. vidurkį, Eur"]
["5.3.1","Pareigybės pavadinimas","Darbuotojo vardas pavardė","val.",null,{"$f":"IFERROR(ROUND(AVERAGE(K24:K28),2),\"0\")","v":"0"},{"$f":"ROUND(E24*F24,2)","v":0},{"$f":"ROUND(G24*$D$7,2)","v":0}]
[null,null,"Darbuotojo vardas pavardė"]
[null,null,"Darbuotojo vardas pavardė"]
[null,null,"Darbuotojo vardas pavardė"]
[null,null,"Darbuotojo vardas pavardė"]
["5.3.2","Pareigybės pavadinimas","Darbuotojo vardas pavardė","val.",null,{"$f":"IFERROR(ROUND(AVERAGE(K29:K33),2),\"0\")","v":"0"},{"$f":"ROUND(E29*F29,2)","v":0},{"$f":"ROUND(G29*$D$7,2)","v":0}]
[null,null,"Darbuotojo vardas pavardė"]
[null,null,"Darbuotojo vardas pavardė"]
[null,null,"Darbuotojo vardas pavardė"]
[null,null,"Darbuotojo vardas pavardė"]
["5.3.3","Pareigybės pavadinimas","Darbuotojo vardas pavardė","val.",null,{"$f":"IFERROR(ROUND(AVERAGE(K34:K38),2),\"0\")","v":"0"},{"$f":"ROUND(E34*F34,2)","v":0},{"$f":"ROUND(G34*$D$7,2)","v":0}]
[null,null,"Darbuotojo vardas pavardė"]
[null,null,"Darbuotojo vardas pavardė"]
[null,null,"Darbuotojo vardas pavardė"]
[null,null,"Darbuotojo vardas pavardė"]
["5.3.4","Pareigybės pavadinimas","Darbuotojo vardas pavardė","val.",null,{"$f":"IFERROR(ROUND(AVERAGE(K39:K43),2),\"0\")","v":"0"},{"$f":"ROUND(E39*F39,2)","v":0},{"$f":"ROUND(G39*$D$7,2)","v":0}]
[null,null,"Darbuotojo vardas pavardė"]
[null,null,"Darbuotojo vardas pavardė"]
[null,null,"Darbuotojo vardas pavardė"]
[null,null,"Darbuotojo vardas pavardė"]
["5.3.5","Pareigybės pavadinimas","Darbuotojo vardas pavardė","val.",null,{"$f":"IFERROR(ROUND(AVERAGE(K44:K48),2),\"0\")","v":"0"},{"$f":"ROUND(E44*F44,2)","v":0},{"$f":"ROUND(G44*$D$7,2)","v":0}]
[null,null,"Darbuotojo vardas pavardė"]
[null,null,"Darbuotojo vardas pavardė"]
[null,null,"Darbuotojo vardas pavardė"]
[null,null,"Darbuotojo vardas pavardė"]
["5.4","Projektą vykdančio personalo komandiruočių išlaidos",null,null,null,null,{"$f":"SUM(G50,G57,G64,G71,G78)","v":0},{"$f":"SUM(H50,H57,H64,H71,H78)","v":0}]
["5.4.1","Komandiruotės pavadinimas, vieta, trukmė dienomis, vykstančių asmenų skaičius","Iš viso komandiruotei",null,null,null,{"$f":"SUM(G51:G56)","v":0},{"$f":"ROUND(G50*$D$7,2)","v":0}]
[null,null,"Dienpinigiai",null,null,null,{"$f":"ROUND(E51*F51,2)","v":0}]
[null,null,"Gyvenamojo ploto nuoma",null,null,null,0]
[null,null,"Kelionės išlaidos",null,null,null,0]
[null,null,"Dalyvavimo mokestis",null,null,null,0]
[null,null,"Kitos išlaidų pavadinimas",null,null,null,0]
[null,null,"Kitos išlaidų pavadinimas",null,null,null,0]
["5.4.2","Komandiruotės pavadinimas, vieta, trukmė dienomis, vykstančių asmenų skaičius","Iš viso komandiruotei",null,null,null,{"$f":"SUM(G58:G63)","v":0},{"$f":"ROUND(G57*$D$7,2)","v":0}]
[null,null,"Dienpinigiai",null,null,null,{"$f":"ROUND(E58*F58,2)","v":0}]
[null,null,"Gyvenamojo ploto nuoma",null,null,null,0]
[null,null,"Kelionės išlaidos",null,null,null,0]
[null,null,"Dalyvavimo mokestis",null,null,null,0]
[null,null,"Kitos išlaidų pavadinimas",null,null,null,0]
[null,null,"Kitos išlaidų pavadinimas",null,null,null,0]
["5.4.3","Komandiruotės pavadinimas, vieta, trukmė dienomis, vykstančių asmenų skaičius","Iš viso komandiruotei",null,null,null,{"$f":"SUM(G65:G70)","v":0},{"$f":"ROUND(G64*$D$7,2)","v":0}]
[null,null,"Dienpinigiai",null,null,null,{"$f":"ROUND(E65*F65,2)","v":0}]
[null,null,"Gyvenamojo ploto nuoma",null,null,null,0]
[null,null,"Kelionės išlaidos",null,null,null,0]
[null,null,"Dalyvavimo mokestis",null,null,null,0]
[null,null,"Kitos išlaidų pavadinimas",null,null,null,0]
[null,null,"Kitos išlaidų pavadinimas",null,null,null,0]
["5.4.4","Komandiruotės pavadinimas, vieta, trukmė dienomis, vykstančių asmenų skaičius","Iš viso komandiruotei",null,null,null,{"$f":"SUM(G72:G77)","v":0},{"$f":"ROUND(G71*$D$7,2)","v":0}]
[null,null,"Dienpinigiai",null,null,null,{"$f":"ROUND(E72*F72,2)","v":0}]
[null,null,"Gyvenamojo ploto nuoma",null,null,null,0]
[null,null,"Kelionės išlaidos",null,null,null,0]
[null,null,"Dalyvavimo mokestis",null,null,null,0]
[null,null,"Kitos išlaidų pavadinimas",null,null,null,0]
[null,null,"Kitos išlaidų pavadinimas",null,null,null,0]
["5.4.5","Komandiruotės pavadinimas, vieta, trukmė dienomis, vykstančių asmenų skaičius","Iš viso komandiruotei",null,null,null,{"$f":"SUM(G79:G84)","v":0},{"$f":"ROUND(G78*$D$7,2)","v":0}]
[null,null,"Dienpinigiai",null,null,null,{"$f":"ROUND(E79*F79,2)","v":0}]
[null,null,"Gyvenamojo ploto nuoma",null,null,null,0]
[null,null,"Kelionės išlaidos",null,null,null,0]
[null,null,"Dalyvavimo mokestis",null,null,null,0]
[null,null,"Kitos išlaidų pavadinimas",null,null,null,0]
[null,null,"Kitos išlaidų pavadinimas",null,null,null,0]
["Iš viso tinkamų finansuoti išlaidų:",null,null,null,null,null,{"$f":"G10","v":0},{"$f":"H10","v":0}]

{"sheet":"6","index":7,"n_rows":85,"n_cols":11,"rows_kept":85,"cut":false,"hidden":false,"merged":[[77,0,83,0],[77,1,83,1],[77,8,83,8],[84,0,84,5],[63,0,69,0],[63,1,69,1],[63,8,69,8],[70,0,76,0],[70,1,76,1],[70,8,76,8],[49,0,55,0],[49,1,55,1],[49,8,55,8],[48,1,48,5],[56,0,62,0],[56,1,62,1],[56,8,62,8],[43,8,47,8],[43,0,47,0],[43,1,47,1],[43,3,47,3],[43,4,47,4],[43,5,47,5],[43,7,47,7],[43,6,47,6],[18,1,18,2],[19,1,19,2],[20,1,20,2],[21,1,21,2],[15,1,15,2],[16,1,16,5],[12,1,12,2],[13,1,13,2],[14,1,14,2],[17,1,17,2],[0,3,0,8],[2,0,2,2],[2,3,2,8],[11,1,11,2],[9,1,9,5],[3,3,3,4],[3,5,3,6],[4,0,4,2],[4,3,4,8],[8,1,8,2],[10,1,10,5],[22,1,22,5],[23,0,27,0],[23,1,27,1],[23,3,27,3],[23,4,27,4],[23,5,27,5],[23,6,27,6],[23,7,27,7],[23,8,27,8],[28,0,32,0],[28,1,32,1],[28,3,32,3],[28,4,32,4],[28,5,32,5],[28,6,32,6],[28,7,32,7],[28,8,32,8],[33,6,37,6],[33,7,37,7],[33,8,37,8],[38,0,42,0],[38,1,42,1],[38,3,42,3],[38,4,42,4],[38,5,42,5],[38,6,42,6],[38,7,42,7],[38,8,42,8],[33,0,37,0],[33,1,37,1],[33,3,37,3],[33,4,37,4],[33,5,37,5]]}
[null,null,"Pasirinkite veiklos tipą:"]
[null,null,"Fizinio rodiklio Nr.:"]
["Fizinio rodiklio pavadinimas:"]
[null,null,"Fizinio rodiklio matavimo vnt.:",null,null,"Fizinio rodiklio vnt. skaičius:"]
["Juridinis asmuo (pareiškėjas, partneris), atsakingas už fizinį rodiklį:"]
[]
[null,null,"Finansavimo intensyvumas:",null,null,null,"Pasirinkite biudžeto išlaidų kategoriją:"]
[]
["Eil. Nr.","Išlaidų kategorijos pavadinimas",null,"Matavimo vnt.","Kiekis","Vieneto kaina be PVM, Eur","Tinkamų finansuoti išlaidų suma be PVM, Eur","Finansavimo suma, Eur","Išlaidų pagrindimo dokumentų pavadinimas, data ir Nr."]
[5,"PROJEKTO VYKDYMAS",null,null,null,null,{"$f":"G11+G17+G23+G49","v":0},{"$f":"H11+H17+H23+H49","v":0}]
["5.1","Produkto sertifikavimas",null,null,null,null,{"$f":"SUM(G12:G16)","v":0},{"$f":"SUM(H12:H16)","v":0}]
["5.1.1","Išlaidų pavadinimas",null,null,null,null,{"$f":"ROUND(E12*F12,2)","v":0},{"$f":"ROUND(G12*$D$7,2)","v":0}]
["5.1.2","Išlaidų pavadinimas",null,null,null,null,0,0]
["5.1.3","Išlaidų pavadinimas",null,null,null,null,0,0]
["5.1.4","Išlaidų pavadinimas",null,null,null,null,0,0]
["5.1.5","Išlaidų pavadinimas",null,null,null,null,0,0]
["5.2","Sertifikavimo išlaidos",null,null,null,null,{"$f":"SUM(G18:G22)","v":0},{"$f":"SUM(H18:H22)","v":0}]
["5.2.1","Paslaugos pavadinimas",null,null,null,null,{"$f":"ROUND(E18*F18,2)","v":0},0]
["5.2.2","Paslaugos pavadinimas",null,null,null,null,0,0]
["5.2.3","Paslaugos pavadinimas",null,null,null,null,0,0]
["5.2.4","Paslaugos pavadinimas",null,null,null,null,0,0]
["5.2.5","Paslaugos pavadinimas",null,null,null,null,0,0]
["5.3","Projektą vykdančio personalo darbo užmokestis ir išlaidos su darbo santykiais susijusiems darbdavio įsipareigojimams",null,null,null,null,{"$f":"SUM(G24:G48)","v":0},{"$f":"SUM(H24:H48)","v":0},null,null,"Faktiškai gaunamas darbo užmokesti už 1 valandą pagal  pastarųjų 6 mėn. vidurkį, Eur"]
["5.3.1","Pareigybės pavadinimas","Darbuotojo vardas pavardė","val.",null,{"$f":"IFERROR(ROUND(AVERAGE(K24:K28),2),\"0\")","v":"0"},{"$f":"ROUND(E24*F24,2)","v":0},{"$f":"ROUND(G24*$D$7,2)","v":0}]
[null,null,"Darbuotojo vardas pavardė"]
[null,null,"Darbuotojo vardas pavardė"]
[null,null,"Darbuotojo vardas pavardė"]
[null,null,"Darbuotojo vardas pavardė"]
["5.3.2","Pareigybės pavadinimas","Darbuotojo vardas pavardė","val.",null,{"$f":"IFERROR(ROUND(AVERAGE(K29:K33),2),\"0\")","v":"0"},{"$f":"ROUND(E29*F29,2)","v":0},{"$f":"ROUND(G29*$D$7,2)","v":0}]
[null,null,"Darbuotojo vardas pavardė"]
[null,null,"Darbuotojo vardas pavardė"]
[null,null,"Darbuotojo vardas pavardė"]
[null,null,"Darbuotojo vardas pavardė"]
["5.3.3","Pareigybės pavadinimas","Darbuotojo vardas pavardė","val.",null,{"$f":"IFERROR(ROUND(AVERAGE(K34:K38),2),\"0\")","v":"0"},{"$f":"ROUND(E34*F34,2)","v":0},{"$f":"ROUND(G34*$D$7,2)","v":0}]
[null,null,"Darbuotojo vardas pavardė"]
[null,null,"Darbuotojo vardas pavardė"]
[null,null,"Darbuotojo vardas pavardė"]
[null,null,"Darbuotojo vardas pavardė"]
["5.3.4","Pareigybės pavadinimas","Darbuotojo vardas pavardė","val.",null,{"$f":"IFERROR(ROUND(AVERAGE(K39:K43),2),\"0\")","v":"0"},{"$f":"ROUND(E39*F39,2)","v":0},{"$f":"ROUND(G39*$D$7,2)","v":0}]
[null,null,"Darbuotojo vardas pavardė"]
[null,null,"Darbuotojo vardas pavardė"]
[null,null,"Darbuotojo vardas pavardė"]
[null,null,"Darbuotojo vardas pavardė"]
["5.3.5","Pareigybės pavadinimas","Darbuotojo vardas pavardė","val.",null,{"$f":"IFERROR(ROUND(AVERAGE(K44:K48),2),\"0\")","v":"0"},{"$f":"ROUND(E44*F44,2)","v":0},{"$f":"ROUND(G44*$D$7,2)","v":0}]
[null,null,"Darbuotojo vardas pavardė"]
[null,null,"Darbuotojo vardas pavardė"]
[null,null,"Darbuotojo vardas pavardė"]
[null,null,"Darbuotojo vardas pavardė"]
["5.4","Projektą vykdančio personalo komandiruočių išlaidos",null,null,null,null,{"$f":"SUM(G50,G57,G64,G71,G78)","v":0},{"$f":"SUM(H50,H57,H64,H71,H78)","v":0}]
["5.4.1","Komandiruotės pavadinimas, vieta, trukmė dienomis, vykstančių asmenų skaičius","Iš viso komandiruotei",null,null,null,{"$f":"SUM(G51:G56)","v":0},{"$f":"ROUND(G50*$D$7,2)","v":0}]
[null,null,"Dienpinigiai",null,null,null,{"$f":"ROUND(E51*F51,2)","v":0}]
[null,null,"Gyvenamojo ploto nuoma",null,null,null,0]
[null,null,"Kelionės išlaidos",null,null,null,0]
[null,null,"Dalyvavimo mokestis",null,null,null,0]
[null,null,"Kitos išlaidų pavadinimas",null,null,null,0]
[null,null,"Kitos išlaidų pavadinimas",null,null,null,0]
["5.4.2","Komandiruotės pavadinimas, vieta, trukmė dienomis, vykstančių asmenų skaičius","Iš viso komandiruotei",null,null,null,{"$f":"SUM(G58:G63)","v":0},{"$f":"ROUND(G57*$D$7,2)","v":0}]
[null,null,"Dienpinigiai",null,null,null,{"$f":"ROUND(E58*F58,2)","v":0}]
[null,null,"Gyvenamojo ploto nuoma",null,null,null,0]
[null,null,"Kelionės išlaidos",null,null,null,0]
[null,null,"Dalyvavimo mokestis",null,null,null,0]
[null,null,"Kitos išlaidų pavadinimas",null,null,null,0]
[null,null,"Kitos išlaidų pavadinimas",null,null,null,0]
["5.4.3","Komandiruotės pavadinimas, vieta, trukmė dienomis, vykstančių asmenų skaičius","Iš viso komandiruotei",null,null,null,{"$f":"SUM(G65:G70)","v":0},{"$f":"ROUND(G64*$D$7,2)","v":0}]
[null,null,"Dienpinigiai",null,null,null,{"$f":"ROUND(E65*F65,2)","v":0}]
[null,null,"Gyvenamojo ploto nuoma",null,null,null,0]
[null,null,"Kelionės išlaidos",null,null,null,0]
[null,null,"Dalyvavimo mokestis",null,null,null,0]
[null,null,"Kitos išlaidų pavadinimas",null,null,null,0]
[null,null,"Kitos išlaidų pavadinimas",null,null,null,0]
["5.4.4","Komandiruotės pavadinimas, vieta, trukmė dienomis, vykstančių asmenų skaičius","Iš viso komandiruotei",null,null,null,{"$f":"SUM(G72:G77)","v":0},{"$f":"ROUND(G71*$D$7,2)","v":0}]
[null,null,"Dienpinigiai",null,null,null,{"$f":"ROUND(E72*F72,2)","v":0}]
[null,null,"Gyvenamojo ploto nuoma",null,null,null,0]
[null,null,"Kelionės išlaidos",null,null,null,0]
[null,null,"Dalyvavimo mokestis",null,null,null,0]
[null,null,"Kitos išlaidų pavadinimas",null,null,null,0]
[null,null,"Kitos išlaidų pavadinimas",null,null,null,0]
["5.4.5","Komandiruotės pavadinimas, vieta, trukmė dienomis, vykstančių asmenų skaičius","Iš viso komandiruotei",null,null,null,{"$f":"SUM(G79:G84)","v":0},{"$f":"ROUND(G78*$D$7,2)","v":0}]
[null,null,"Dienpinigiai",null,null,null,{"$f":"ROUND(E79*F79,2)","v":0}]
[null,null,"Gyvenamojo ploto nuoma",null,null,null,0]
[null,null,"Kelionės išlaidos",null,null,null,0]
[null,null,"Dalyvavimo mokestis",null,null,null,0]
[null,null,"Kitos išlaidų pavadinimas",null,null,null,0]
[null,null,"Kitos išlaidų pavadinimas",null,null,null,0]
["Iš viso tinkamų finansuoti išlaidų:",null,null,null,null,null,{"$f":"G10","v":0},{"$f":"H10","v":0}]